[Event "Live Chess"]
[Site "Chess.com"]
[Date "2024.06.01"]
[Round "-"]
[White "Ferrarifan27"]
[Black "blunderabit"]
[Result "0-1"]
[WhiteElo "2049"]
[BlackElo "1814"]
[TimeControl "300"]
[EndTime "11:26:15 PDT"]
[Termination "blunderabit won by resignation"]

1. e4 {[%clk 0:04:58]} 1... c5 {[%clk 0:04:55.6]} 2. Nf3 {[%clk 0:04:56.6]} 2...
a6 {[%clk 0:04:50.1]} 3. c3 {[%clk 0:04:53.5]} 3... b5 {[%clk 0:04:46.5]} 4. d4
{[%clk 0:04:51.8]} 4... Bb7 {[%clk 0:04:45.2]} 5. Bd3 {[%clk 0:04:45.9]} 5... e6
{[%clk 0:04:38.3]} 6. O-O {[%clk 0:04:43.5]} 6... Nf6 {[%clk 0:04:35.5]} 7. Re1
{[%clk 0:04:42.1]} 7... cxd4 {[%clk 0:04:33.6]} 8. cxd4 {[%clk 0:04:40.8]} 8...
Be7 {[%clk 0:04:19.7]} 9. Nc3 {[%clk 0:04:36.8]} 9... O-O {[%clk 0:04:17.4]} 10.
e5 {[%clk 0:04:35.1]} 10... Nd5 {[%clk 0:04:14.5]} 11. Nxd5 {[%clk 0:04:33.6]}
11... Bxd5 {[%clk 0:04:12.4]} 12. Be3 {[%clk 0:04:32.7]} 12... f5 {[%clk
0:04:06.2]} 13. exf6 {[%clk 0:04:28.1]} 13... Bxf6 {[%clk 0:04:04.3]} 14. Rc1
{[%clk 0:04:26.6]} 14... Nc6 {[%clk 0:04:02.5]} 15. Bb1 {[%clk 0:04:24.8]} 15...
Rc8 {[%clk 0:03:52.6]} 16. a3 {[%clk 0:04:23.6]} 16... Ne7 {[%clk 0:03:46.2]}
17. Qd3 {[%clk 0:04:20]} 17... g6 {[%clk 0:03:34.8]} 18. Ne5 {[%clk 0:04:18.3]}
18... Bxe5 {[%clk 0:03:28.3]} 19. dxe5 {[%clk 0:04:18.2]} 19... Rxc1 {[%clk
0:03:24.5]} 20. Rxc1 {[%clk 0:04:16.6]} 20... Nf5 {[%clk 0:03:23.1]} 21. Bc5
{[%clk 0:04:09.2]} 21... Rf7 {[%clk 0:03:20.5]} 22. a4 {[%clk 0:03:54]} 22...
Qg5 {[%clk 0:03:18.1]} 23. g3 {[%clk 0:03:42.5]} 23... Qxc1+ {[%clk 0:03:14.3]}
24. Qf1 {[%clk 0:03:38.5]} 24... Qxc5 {[%clk 0:03:10.6]} 0-1

[Event "Live Chess"]
[Site "Chess.com"]
[Date "2024.06.01"]
[Round "-"]
[White "uselessduffer"]
[Black "ACM42"]
[Result "1-0"]
[WhiteElo "2425"]
[BlackElo "2205"]
[TimeControl "300"]
[EndTime "11:26:16 PDT"]
[Termination "uselessduffer won by resignation"]

1. e4 {[%clk 0:04:55.9]} 1... e6 {[%clk 0:04:58.3]} 2. d4 {[%clk 0:04:54.2]}
2... d5 {[%clk 0:04:57.6]} 3. Nc3 {[%clk 0:04:53.9]} 3... Bb4 {[%clk 0:04:56.1]}
4. e5 {[%clk 0:04:53.2]} 4... c5 {[%clk 0:04:55.6]} 5. Bd2 {[%clk 0:04:52.5]}
5... Nc6 {[%clk 0:04:53.6]} 6. Nb5 {[%clk 0:04:50.6]} 6... Bxd2+ {[%clk
0:04:48.5]} 7. Qxd2 {[%clk 0:04:50.5]} 7... cxd4 {[%clk 0:04:46.4]} 8. f4 {[%clk
0:04:41.3]} 8... Nge7 {[%clk 0:04:44.6]} 9. Nd6+ {[%clk 0:04:38.2]} 9... Kf8
{[%clk 0:04:43.7]} 10. Nf3 {[%clk 0:04:37.4]} 10... Nf5 {[%clk 0:04:39.4]} 11.
Nxf5 {[%clk 0:04:34.6]} 11... exf5 {[%clk 0:04:38.5]} 12. Nxd4 {[%clk
0:04:30.6]} 12... Qb6 {[%clk 0:04:33.5]} 13. O-O-O {[%clk 0:04:27.8]} 13... Be6
{[%clk 0:04:26.7]} 14. Kb1 {[%clk 0:04:15.7]} 14... g6 {[%clk 0:04:25]} 15. h3
{[%clk 0:04:12.2]} 15... h5 {[%clk 0:04:23.1]} 16. g3 {[%clk 0:04:10.2]} 16...
Kg7 {[%clk 0:04:20]} 17. Be2 {[%clk 0:04:07.4]} 17... Rhc8 {[%clk 0:04:10.5]}
18. Rhg1 {[%clk 0:03:47]} 18... Qc5 {[%clk 0:03:59.4]} 19. Nb3 {[%clk
0:03:25.3]} 19... Qb6 {[%clk 0:03:13.1]} 20. g4 {[%clk 0:02:54.6]} 20... hxg4
{[%clk 0:03:11.9]} 21. hxg4 {[%clk 0:02:54]} 21... a5 {[%clk 0:03:11.4]} 22. Nd4
{[%clk 0:02:25.5]} 22... Nxd4 {[%clk 0:02:45.6]} 23. Qxd4 {[%clk 0:02:25.4]}
23... Qxd4 {[%clk 0:02:43.2]} 24. Rxd4 {[%clk 0:02:25.3]} 24... fxg4 {[%clk
0:02:42.5]} 25. Bxg4 {[%clk 0:02:22.2]} 25... Rc4 {[%clk 0:02:41.8]} 26. Rxc4
{[%clk 0:01:57.9]} 26... dxc4 {[%clk 0:02:40.2]} 27. Bf3 {[%clk 0:01:54.4]}
27... Rb8 {[%clk 0:02:33.8]} 28. c3 {[%clk 0:01:32.1]} 28... b5 {[%clk 0:02:32]}
29. Be4 {[%clk 0:01:27.3]} 29... Kf8 {[%clk 0:01:50.9]} 30. Kc2 {[%clk
0:01:23.3]} 30... Ke7 {[%clk 0:01:46.2]} 31. Rh1 {[%clk 0:01:16.2]} 31... b4
{[%clk 0:01:41.2]} 32. Rh2 {[%clk 0:00:59.6]} 32... Rd8 {[%clk 0:01:30.6]} 33.
Rh1 {[%clk 0:00:50.9]} 33... b3+ {[%clk 0:01:27.7]} 34. axb3 {[%clk 0:00:49.2]}
34... cxb3+ {[%clk 0:01:27]} 35. Kc1 {[%clk 0:00:48.2]} 35... a4 {[%clk
0:01:26.2]} 36. Rd1 {[%clk 0:00:42.9]} 36... Ra8 {[%clk 0:01:19.5]} 37. Bxa8
{[%clk 0:00:39.7]} 37... Bf5 {[%clk 0:01:16.8]} 38. Kd2 {[%clk 0:00:37.4]} 38...
a3 {[%clk 0:01:13.6]} 39. bxa3 {[%clk 0:00:36.1]} 39... b2 {[%clk 0:01:12.7]}
40. Bd5 {[%clk 0:00:33.7]} 40... b1=Q {[%clk 0:01:10.3]} 41. Rxb1 {[%clk
0:00:32.9]} 41... Bxb1 {[%clk 0:01:09.7]} 42. c4 {[%clk 0:00:32.6]} 42... f6
{[%clk 0:01:06.5]} 43. exf6+ {[%clk 0:00:30.7]} 43... Kxf6 {[%clk 0:01:05.7]}
44. Ke3 {[%clk 0:00:30.3]} 44... Ba2 {[%clk 0:00:57.4]} 45. a4 {[%clk
0:00:29.1]} 45... Ke7 {[%clk 0:00:53.7]} 46. Kd4 {[%clk 0:00:27.7]} 46... Kd6
{[%clk 0:00:53]} 47. c5+ {[%clk 0:00:27]} 47... Kc7 {[%clk 0:00:51.3]} 48. Bxa2
{[%clk 0:00:26.9]} 1-0

[Event "Live Chess"]
[Site "Chess.com"]
[Date "2024.06.01"]
[Round "-"]
[White "Mof05"]
[Black "educatedlad"]
[Result "1/2-1/2"]
[WhiteElo "1045"]
[BlackElo "1762"]
[TimeControl "300"]
[EndTime "11:26:24 PDT"]
[Termination "Game drawn - insufficient material"]

1. d4 {[%clk 0:04:56.4]} 1... Nc6 {[%clk 0:04:59.9]} 2. Bf4 {[%clk 0:04:52.5]}
2... d5 {[%clk 0:04:58.8]} 3. e3 {[%clk 0:04:50.3]} 3... Nf6 {[%clk 0:04:56.4]}
4. h3 {[%clk 0:04:43.6]} 4... Bf5 {[%clk 0:04:51.6]} 5. Bd3 {[%clk 0:04:36.6]}
5... Bxd3 {[%clk 0:04:50.1]} 6. Qxd3 {[%clk 0:04:35.6]} 6... e6 {[%clk
0:04:45.8]} 7. Nf3 {[%clk 0:04:25.7]} 7... Bb4+ {[%clk 0:04:42.9]} 8. c3 {[%clk
0:04:24.3]} 8... Bd6 {[%clk 0:04:42.8]} 9. Bxd6 {[%clk 0:04:21.3]} 9... Qxd6
{[%clk 0:04:42.7]} 10. Nbd2 {[%clk 0:04:18.3]} 10... e5 {[%clk 0:04:40.4]} 11.
dxe5 {[%clk 0:04:16.8]} 11... Nxe5 {[%clk 0:04:40.2]} 12. Nxe5 {[%clk
0:04:15.6]} 12... Qxe5 {[%clk 0:04:40.1]} 13. Nf3 {[%clk 0:04:13.8]} 13... Qe4
{[%clk 0:04:38.7]} 14. Qxe4+ {[%clk 0:04:00]} 14... Nxe4 {[%clk 0:04:38.6]} 15.
O-O {[%clk 0:03:57.2]} 15... O-O-O {[%clk 0:04:33.7]} 16. Rfd1 {[%clk
0:03:51.7]} 16... c5 {[%clk 0:04:32.3]} 17. Rac1 {[%clk 0:03:49.2]} 17... Rhe8
{[%clk 0:04:28.7]} 18. Kf1 {[%clk 0:03:21.2]} 18... Kc7 {[%clk 0:04:26.7]} 19.
c4 {[%clk 0:03:09.1]} 19... dxc4 {[%clk 0:04:25.3]} 20. Rxd8 {[%clk 0:03:07.6]}
20... Rxd8 {[%clk 0:04:24.6]} 21. Rxc4 {[%clk 0:03:05.6]} 21... b6 {[%clk
0:04:19.4]} 22. Rxe4 {[%clk 0:02:59.9]} 22... Rd1+ {[%clk 0:04:18.5]} 23. Ke2
{[%clk 0:02:58.3]} 23... Rb1 {[%clk 0:04:17]} 24. Re7+ {[%clk 0:02:56.8]} 24...
Kd6 {[%clk 0:04:15.8]} 25. Rxf7 {[%clk 0:02:52.9]} 25... Rxb2+ {[%clk
0:04:13.2]} 26. Nd2 {[%clk 0:02:45.1]} 26... c4 {[%clk 0:04:10.1]} 27. Kd1
{[%clk 0:02:37.9]} 27... c3 {[%clk 0:04:08.9]} 28. Nc4+ {[%clk 0:02:34.3]} 28...
Ke6 {[%clk 0:04:07.2]} 29. Nxb2 {[%clk 0:02:20.6]} 29... cxb2 {[%clk 0:04:04.4]}
30. Kc2 {[%clk 0:02:19.5]} 30... Kxf7 {[%clk 0:04:02.5]} 31. Kxb2 {[%clk
0:02:18]} 31... Ke6 {[%clk 0:04:01.1]} 32. Kc3 {[%clk 0:02:17.3]} 32... Kd5
{[%clk 0:03:59.2]} 33. a4 {[%clk 0:02:13.9]} 33... a6 {[%clk 0:03:50.4]} 34. f3
{[%clk 0:02:05.5]} 34... b5 {[%clk 0:03:46.6]} 35. axb5 {[%clk 0:02:03.4]} 35...
axb5 {[%clk 0:03:44.3]} 36. e4+ {[%clk 0:01:55.5]} 36... Ke5 {[%clk 0:03:38.8]}
37. g3 {[%clk 0:01:51.4]} 37... g5 {[%clk 0:03:36.8]} 38. Kb4 {[%clk 0:01:44.2]}
38... h5 {[%clk 0:03:34.5]} 39. Kxb5 {[%clk 0:01:42.1]} 39... g4 {[%clk
0:03:33.6]} 40. hxg4 {[%clk 0:01:40.5]} 40... hxg4 {[%clk 0:03:32.4]} 41. fxg4
{[%clk 0:01:33.3]} 41... Kxe4 {[%clk 0:03:31.4]} 42. g5 {[%clk 0:01:32.4]} 42...
Kf5 {[%clk 0:03:30.6]} 43. g6 {[%clk 0:01:31.6]} 43... Kxg6 {[%clk 0:03:29.8]}
44. Kc5 {[%clk 0:01:31.4]} 44... Kg5 {[%clk 0:03:29.3]} 45. Kd4 {[%clk
0:01:30.2]} 45... Kg4 {[%clk 0:03:28.9]} 46. Ke3 {[%clk 0:01:29.4]} 46... Kxg3
{[%clk 0:03:28.4]} 1/2-1/2

[Event "Live Chess"]
[Site "Chess.com"]
[Date "2024.06.01"]
[Round "-"]
[White "GoldsmanB"]
[Black "bobby_jamesFischer86"]
[Result "0-1"]
[WhiteElo "1051"]
[BlackElo "1591"]
[TimeControl "300"]
[EndTime "11:26:25 PDT"]
[Termination "bobby_jamesFischer86 won by checkmate"]

1. d4 {[%clk 0:04:57.8]} 1... d5 {[%clk 0:04:56.9]} 2. Bf4 {[%clk 0:04:56.4]}
2... e6 {[%clk 0:04:54.4]} 3. e3 {[%clk 0:04:54.9]} 3... Bd6 {[%clk 0:04:52.8]}
4. Bg3 {[%clk 0:04:52.8]} 4... Nf6 {[%clk 0:04:51.3]} 5. Nf3 {[%clk 0:04:52.1]}
5... O-O {[%clk 0:04:48.7]} 6. c3 {[%clk 0:04:51.6]} 6... c5 {[%clk 0:04:46.9]}
7. Nbd2 {[%clk 0:04:49.6]} 7... Nc6 {[%clk 0:04:45.5]} 8. Be2 {[%clk 0:04:47.3]}
8... b6 {[%clk 0:04:43.9]} 9. Qc2 {[%clk 0:04:44.8]} 9... Bb7 {[%clk 0:04:41.4]}
10. O-O-O {[%clk 0:04:40.1]} 10... Rc8 {[%clk 0:04:40]} 11. c4 {[%clk
0:04:34.3]} 11... dxc4 {[%clk 0:04:37.2]} 12. Nxc4 {[%clk 0:04:33.3]} 12... Bxg3
{[%clk 0:04:32.6]} 13. hxg3 {[%clk 0:04:33.2]} 13... cxd4 {[%clk 0:04:31.3]} 14.
Nxd4 {[%clk 0:04:26.3]} 14... Nxd4 {[%clk 0:04:28]} 15. Rxd4 {[%clk 0:04:23.8]}
15... Qe7 {[%clk 0:04:26.5]} 16. Bf3 {[%clk 0:04:21.6]} 16... Bxf3 {[%clk
0:04:23.2]} 17. gxf3 {[%clk 0:04:21.5]} 17... b5 {[%clk 0:04:22.1]} 18. Nd6
{[%clk 0:04:16.4]} 18... Rxc2+ {[%clk 0:04:20.1]} 19. Kxc2 {[%clk 0:04:13]}
19... Nd5 {[%clk 0:04:17.1]} 20. Nxb5 {[%clk 0:04:09.7]} 20... Rc8+ {[%clk
0:04:13.5]} 21. Kd3 {[%clk 0:04:06.1]} 21... Nb4+ {[%clk 0:04:11]} 22. Ke4
{[%clk 0:04:00.8]} 22... f5+ {[%clk 0:04:09.4]} 23. Ke5 {[%clk 0:03:59]} 23...
Qf6+ {[%clk 0:04:08.3]} 24. Kf4 {[%clk 0:03:55.4]} 24... g5# {[%clk 0:04:06.4]}
0-1

[Event "Live Chess"]
[Site "Chess.com"]
[Date "2024.06.01"]
[Round "-"]
[White "StoreySniper"]
[Black "Mangoalo"]
[Result "1-0"]
[WhiteElo "2557"]
[BlackElo "1009"]
[TimeControl "300"]
[EndTime "11:26:26 PDT"]
[Termination "StoreySniper won by resignation"]

1. e4 {[%clk 0:04:50.5]} 1... c6 {[%clk 0:04:56.3]} 2. d4 {[%clk 0:04:48.1]}
2... d5 {[%clk 0:04:56.2]} 3. Nc3 {[%clk 0:04:45.3]} 3... dxe4 {[%clk
0:04:52.1]} 4. f3 {[%clk 0:04:42.1]} 4... Nf6 {[%clk 0:04:52]} 5. fxe4 {[%clk
0:04:40.9]} 5... Bg4 {[%clk 0:04:44.2]} 6. Nf3 {[%clk 0:04:38.4]} 6... e6 {[%clk
0:04:36.5]} 7. Be3 {[%clk 0:04:27.4]} 7... Bb4 {[%clk 0:04:33.2]} 8. Bd3 {[%clk
0:04:25.1]} 8... Nbd7 {[%clk 0:04:26.2]} 9. O-O {[%clk 0:04:22.7]} 9... Bxc3
{[%clk 0:04:24.2]} 10. bxc3 {[%clk 0:04:21.5]} 10... e5 {[%clk 0:04:21.6]} 11.
Qe1 {[%clk 0:04:12.9]} 11... Bxf3 {[%clk 0:04:16.4]} 12. Rxf3 {[%clk 0:04:10.3]}
12... exd4 {[%clk 0:04:15.1]} 13. cxd4 {[%clk 0:04:09.3]} 13... O-O {[%clk
0:04:08]} 14. e5 {[%clk 0:04:07.8]} 14... Nd5 {[%clk 0:04:05.8]} 15. Bd2 {[%clk
0:03:57.3]} 15... f6 {[%clk 0:04:03.7]} 16. e6 {[%clk 0:03:50.4]} 16... Re8
{[%clk 0:03:53.4]} 17. Bxh7+ {[%clk 0:03:23.2]} 17... Kxh7 {[%clk 0:03:50.2]}
18. Qh4+ {[%clk 0:03:22.3]} 18... Kg8 {[%clk 0:03:48.8]} 19. exd7 {[%clk
0:03:11]} 19... Qxd7 {[%clk 0:03:33.5]} 20. Rh3 {[%clk 0:03:09.1]} 20... Kf7
{[%clk 0:03:29.7]} 21. Qh5+ {[%clk 0:03:06.8]} 21... Ke7 {[%clk 0:03:27.7]} 22.
c4 {[%clk 0:03:02.2]} 22... Nf4 {[%clk 0:03:16.5]} 23. Re3+ {[%clk 0:02:35.1]}
23... Kd8 {[%clk 0:03:08.3]} 24. Rxe8+ {[%clk 0:02:33.3]} 24... Qxe8 {[%clk
0:03:08.2]} 25. Qxe8+ {[%clk 0:02:32.4]} 25... Kxe8 {[%clk 0:03:08.1]} 26. Bxf4
{[%clk 0:02:31.6]} 26... Kf7 {[%clk 0:03:05.6]} 27. d5 {[%clk 0:02:29.8]} 27...
cxd5 {[%clk 0:02:56.8]} 28. cxd5 {[%clk 0:02:28.6]} 28... Rd8 {[%clk 0:02:55.7]}
29. d6 {[%clk 0:02:27.6]} 29... b5 {[%clk 0:02:54.5]} 30. Rc1 {[%clk 0:02:26.1]}
30... a5 {[%clk 0:02:53]} 31. Rc7+ {[%clk 0:02:25.1]} 31... Kg6 {[%clk
0:02:51.1]} 32. d7 {[%clk 0:02:21.8]} 32... b4 {[%clk 0:02:48.3]} 33. Bd6 {[%clk
0:02:20]} 33... f5 {[%clk 0:02:39.3]} 34. Be7 {[%clk 0:02:17.2]} 34... Rxd7
{[%clk 0:02:32.5]} 35. Rxd7 {[%clk 0:02:16]} 35... b3 {[%clk 0:02:31.5]} 36.
axb3 {[%clk 0:02:13.3]} 36... a4 {[%clk 0:02:31.4]} 37. bxa4 {[%clk 0:02:12.4]}
1-0

[Event "Live Chess"]
[Site "Chess.com"]
[Date "2024.06.01"]
[Round "-"]
[White "WilliamofOrange16th"]
[Black "chessfiction"]
[Result "0-1"]
[WhiteElo "1955"]
[BlackElo "2405"]
[TimeControl "300"]
[EndTime "11:26:44 PDT"]
[Termination "chessfiction won by resignation"]

1. e4 {[%clk 0:04:58.5]} 1... c6 {[%clk 0:04:54.1]} 2. d4 {[%clk 0:04:55]} 2...
d5 {[%clk 0:04:54]} 3. exd5 {[%clk 0:04:54.3]} 3... cxd5 {[%clk 0:04:53.1]} 4.
c4 {[%clk 0:04:53.6]} 4... Nc6 {[%clk 0:04:53]} 5. Nf3 {[%clk 0:04:52]} 5... Nf6
{[%clk 0:04:50.8]} 6. Nc3 {[%clk 0:04:50.8]} 6... e6 {[%clk 0:04:48]} 7. c5
{[%clk 0:04:49.4]} 7... g6 {[%clk 0:04:46]} 8. Bb5 {[%clk 0:04:46.2]} 8... Bg7
{[%clk 0:04:45]} 9. O-O {[%clk 0:04:45.4]} 9... O-O {[%clk 0:04:43.7]} 10. Bxc6
{[%clk 0:04:44.2]} 10... bxc6 {[%clk 0:04:42.5]} 11. Ne5 {[%clk 0:04:43.9]}
11... Bd7 {[%clk 0:04:37.7]} 12. Bg5 {[%clk 0:04:30.7]} 12... h6 {[%clk
0:04:35.4]} 13. Be3 {[%clk 0:04:28.8]} 13... Rb8 {[%clk 0:04:31.2]} 14. Qd2
{[%clk 0:04:27.2]} 14... Kh7 {[%clk 0:04:28.9]} 15. b3 {[%clk 0:04:25.3]} 15...
Be8 {[%clk 0:04:20]} 16. f3 {[%clk 0:04:09.1]} 16... Nd7 {[%clk 0:04:18.2]} 17.
Nxd7 {[%clk 0:04:06.8]} 17... Bxd7 {[%clk 0:04:18.1]} 18. f4 {[%clk 0:04:01.2]}
18... Re8 {[%clk 0:04:08.8]} 19. Qe2 {[%clk 0:03:17.9]} 19... Qa5 {[%clk
0:04:02.5]} 20. Nd1 {[%clk 0:03:05.3]} 20... Bc8 {[%clk 0:03:57.2]} 21. Qg4
{[%clk 0:03:01.7]} 21... Ba6 {[%clk 0:03:52.6]} 22. f5 {[%clk 0:02:44.1]} 22...
exf5 {[%clk 0:03:40.7]} 0-1

[Event "Live Chess"]
[Site "Chess.com"]
[Date "2024.06.01"]
[Round "-"]
[White "Bob2pen"]
[Black "willc-h99"]
[Result "0-1"]
[WhiteElo "1865"]
[BlackElo "2632"]
[TimeControl "300"]
[EndTime "11:26:50 PDT"]
[Termination "willc-h99 won by resignation"]

1. e4 {[%clk 0:04:54.8]} 1... d5 {[%clk 0:04:59.2]} 2. exd5 {[%clk 0:04:53.6]}
2... Qxd5 {[%clk 0:04:59.1]} 3. Nc3 {[%clk 0:04:52.9]} 3... Qd6 {[%clk
0:04:58.6]} 4. Nf3 {[%clk 0:04:51.3]} 4... Nf6 {[%clk 0:04:58]} 5. Bc4 {[%clk
0:04:47.9]} 5... a6 {[%clk 0:04:56.8]} 6. d3 {[%clk 0:04:46.6]} 6... b5 {[%clk
0:04:55.6]} 7. Bb3 {[%clk 0:04:45.2]} 7... Bb7 {[%clk 0:04:54.8]} 8. Be3 {[%clk
0:04:42.6]} 8... e6 {[%clk 0:04:53.8]} 9. Qd2 {[%clk 0:04:41]} 9... c5 {[%clk
0:04:50.2]} 10. Bf4 {[%clk 0:04:33.2]} 10... Qb6 {[%clk 0:04:45.5]} 11. O-O
{[%clk 0:04:26.8]} 11... Bxf3 {[%clk 0:04:42]} 12. gxf3 {[%clk 0:04:25]} 12...
Nc6 {[%clk 0:04:41.5]} 13. Ne2 {[%clk 0:04:19.5]} 13... Be7 {[%clk 0:04:35.9]}
14. a4 {[%clk 0:04:17.9]} 14... O-O {[%clk 0:04:25.9]} 15. axb5 {[%clk
0:04:11.7]} 15... axb5 {[%clk 0:04:25.8]} 16. c3 {[%clk 0:04:06.9]} 16... Nd5
{[%clk 0:04:17.8]} 17. Bxd5 {[%clk 0:04:00]} 17... exd5 {[%clk 0:04:16.2]} 18.
Kh1 {[%clk 0:03:56.7]} 18... Bf6 {[%clk 0:04:13.2]} 19. Rg1 {[%clk 0:03:54.2]}
19... Rxa1 {[%clk 0:04:09.7]} 20. Rxa1 {[%clk 0:03:52.4]} 20... b4 {[%clk
0:04:09]} 21. Rg1 {[%clk 0:03:49]} 21... Re8 {[%clk 0:03:59.8]} 22. Bg5 {[%clk
0:03:46.3]} 22... Ne5 {[%clk 0:03:56.8]} 23. Qf4 {[%clk 0:03:41.2]} 23... Nxd3
{[%clk 0:03:46.7]} 24. Qh4 {[%clk 0:03:25.1]} 24... Rxe2 {[%clk 0:03:22.9]} 25.
Bxf6 {[%clk 0:03:21.9]} 25... Nxf2+ {[%clk 0:03:22.2]} 0-1

[Event "Live Chess"]
[Site "Chess.com"]
[Date "2024.06.01"]
[Round "-"]
[White "grillage"]
[Black "booktrunk"]
[Result "1-0"]
[WhiteElo "1897"]
[BlackElo "1376"]
[TimeControl "300"]
[EndTime "11:26:57 PDT"]
[Termination "grillage won by resignation"]

1. d4 {[%clk 0:04:54.7]} 1... b6 {[%clk 0:04:57]} 2. Nf3 {[%clk 0:04:52.2]} 2...
Bb7 {[%clk 0:04:56.9]} 3. c4 {[%clk 0:04:49.4]} 3... e6 {[%clk 0:04:46.6]} 4. g3
{[%clk 0:04:47.3]} 4... Bb4+ {[%clk 0:04:31]} 5. Bd2 {[%clk 0:04:43.4]} 5...
Bxd2+ {[%clk 0:04:26.8]} 6. Nbxd2 {[%clk 0:04:41.7]} 6... Nf6 {[%clk 0:04:24.3]}
7. Bg2 {[%clk 0:04:40.7]} 7... O-O {[%clk 0:04:22.7]} 8. O-O {[%clk 0:04:40.2]}
8... Ng4 {[%clk 0:04:19.8]} 9. h3 {[%clk 0:04:36.2]} 9... Nf6 {[%clk 0:04:17.2]}
10. Qc2 {[%clk 0:04:33.9]} 10... Kh8 {[%clk 0:04:12.9]} 11. Rfd1 {[%clk
0:04:29.8]} 11... d5 {[%clk 0:04:06.3]} 12. Rac1 {[%clk 0:04:17.3]} 12... dxc4
{[%clk 0:04:03.8]} 13. Nxc4 {[%clk 0:04:14.2]} 13... Nc6 {[%clk 0:03:57.2]} 14.
Nce5 {[%clk 0:04:05.9]} 14... Ne7 {[%clk 0:03:18]} 15. Qxc7 {[%clk 0:03:59]}
15... Bd5 {[%clk 0:03:09.8]} 16. Qxd8 {[%clk 0:03:49.7]} 16... Rfxd8 {[%clk
0:03:07.6]} 17. Rc7 {[%clk 0:03:44.9]} 17... Re8 {[%clk 0:03:02.6]} 18. Nxf7+
{[%clk 0:03:41.6]} 18... Kg8 {[%clk 0:03:01.3]} 19. Nd6 {[%clk 0:03:38.7]} 19...
Red8 {[%clk 0:02:56.8]} 20. Nb5 {[%clk 0:03:26.6]} 20... a6 {[%clk 0:02:51.3]}
21. Rxe7 {[%clk 0:03:15.2]} 21... axb5 {[%clk 0:02:48.8]} 22. a3 {[%clk
0:03:14.3]} 22... Nd7 {[%clk 0:02:40.1]} 23. Ne5 {[%clk 0:03:06.4]} 23... Bxg2
{[%clk 0:02:35.2]} 24. Nxd7 {[%clk 0:02:59.8]} 24... Bd5 {[%clk 0:02:23]} 25.
Nxb6 {[%clk 0:02:55.2]} 25... Rab8 {[%clk 0:02:16.3]} 26. Nxd5 {[%clk
0:02:53.5]} 26... exd5 {[%clk 0:02:15]} 27. Rc1 {[%clk 0:02:51.1]} 27... Rdc8
{[%clk 0:02:08.9]} 28. Rcc7 {[%clk 0:02:46.4]} 28... Rd8 {[%clk 0:02:04.4]} 29.
Rxg7+ {[%clk 0:02:44.4]} 1-0

[Event "Live Chess"]
[Site "Chess.com"]
[Date "2024.06.01"]
[Round "-"]
[White "Bradfield133"]
[Black "WelshTiger"]
[Result "0-1"]
[WhiteElo "1989"]
[BlackElo "2533"]
[TimeControl "300"]
[EndTime "11:27:08 PDT"]
[Termination "WelshTiger won by resignation"]

1. c4 {[%clk 0:04:56.1]} 1... e6 {[%clk 0:04:58.7]} 2. e4 {[%clk 0:04:52.8]}
2... c5 {[%clk 0:04:56.7]} 3. Nc3 {[%clk 0:04:50.9]} 3... Nc6 {[%clk 0:04:55.3]}
4. g3 {[%clk 0:04:49.9]} 4... g6 {[%clk 0:04:53.5]} 5. Bg2 {[%clk 0:04:48.8]}
5... Bg7 {[%clk 0:04:52.8]} 6. Nge2 {[%clk 0:04:48.3]} 6... Nge7 {[%clk
0:04:51.6]} 7. O-O {[%clk 0:04:47]} 7... O-O {[%clk 0:04:49.9]} 8. d3 {[%clk
0:04:41.7]} 8... a6 {[%clk 0:04:44.4]} 9. f4 {[%clk 0:04:39.2]} 9... d6 {[%clk
0:04:41.8]} 10. h3 {[%clk 0:04:32.9]} 10... Rb8 {[%clk 0:04:40.6]} 11. a4 {[%clk
0:04:31.1]} 11... Nb4 {[%clk 0:04:24.3]} 12. g4 {[%clk 0:04:24.9]} 12... d5
{[%clk 0:04:23.5]} 13. cxd5 {[%clk 0:04:15.8]} 13... exd5 {[%clk 0:04:22.7]} 14.
e5 {[%clk 0:04:15.1]} 14... c4 {[%clk 0:04:13.9]} 15. dxc4 {[%clk 0:04:00.1]}
15... dxc4 {[%clk 0:04:12.7]} 16. Be3 {[%clk 0:03:44.5]} 16... Nd3 {[%clk
0:03:56.2]} 17. Qc2 {[%clk 0:03:37.3]} 17... Nc6 {[%clk 0:03:53.4]} 18. Nd5
{[%clk 0:03:27]} 18... b5 {[%clk 0:03:42.8]} 19. axb5 {[%clk 0:03:19.6]} 19...
axb5 {[%clk 0:03:42.7]} 20. Nec3 {[%clk 0:03:02.8]} 20... Ncb4 {[%clk
0:03:38.8]} 21. Qe2 {[%clk 0:02:54.7]} 21... Nxd5 {[%clk 0:03:31.1]} 22. Nxd5
{[%clk 0:02:49.1]} 22... Bb7 {[%clk 0:03:28.5]} 23. Nc3 {[%clk 0:02:32.1]} 23...
Bxg2 {[%clk 0:03:27]} 24. Qxg2 {[%clk 0:02:26.1]} 24... Qd7 {[%clk 0:03:15.7]}
25. Ra7 {[%clk 0:02:19.9]} 25... Qe6 {[%clk 0:03:09.8]} 26. Bc5 {[%clk
0:02:05.3]} 26... Nxc5 {[%clk 0:03:07.2]} 0-1